bitfinex-derivatives/quotes_ETHF0:USTF0_20260201
["timestamp","ask_amount","ask_price","bid_price","bid_amount"]
[1769950989726,0.00432485,2407.1,2406.3,0.16578187]
[1769950989927,4.23429331,2407.1,2406.3,0.16578187]
[1769950990124,4.22996846,2406.8,2406.3,0.16578187]
[1769950990326,0.00432485,2407.1,2406.3,0.16578187]
[1769950990525,4.22996846,2407.0,2406.3,0.16578187]
[1769950990726,4.22996846,2406.8,2406.3,0.16578187]
[1769950990928,4.22996846,2406.8,2405.5,7.42797634]
[1769950990929,0.00432485,2407.1,2405.6,3.69498548]
[1769950991132,0.00432485,2407.1,2405.5,3.47810404]
[1769950991330,0.00432485,2407.1,2405.4,2.963]
[1769950991922,0.00432485,2407.1,2405.4,0.00519326]
[1769950992232,0.00432485,2407.1,2405.4,2.44219326]
[1769950992829,0.00432485,2407.1,2405.6,3.47810404]
[1769950993031,0.00432485,2407.1,2405.7,0.16343136]
[1769950993330,0.00432485,2407.1,2405.8,0.16343136]
[1769950993827,0.00432485,2407.1,2406.0,0.16343136]
[1769950994222,0.00432485,2407.1,2406.1,0.16343136]
[1769950994830,0.00432485,2407.1,2406.2,3.64170036]
[1769950995033,0.00432485,2407.1,2406.3,0.16359632]
[1769950996031,0.00432485,2407.1,2405.8,0.208]
[1769950996032,0.00432485,2407.1,2405.9,0.16359632]
[1769950996336,0.00432485,2407.1,2405.9,3.64170036]
[1769950996530,0.00432485,2407.1,2406.1,0.16359632]
[1769950998429,0.00432485,2407.1,2405.8,0.208]
[1769950998430,0.29145,2407.0,2406.2,0.1591618]
[1769950998626,0.00841833,2407.6,2406.3,0.1585915]
[1769950999637,0.01259509,2407.6,2406.3,0.1585915]
[1769951001131,0.352,2407.5,2406.4,0.15903775]
[1769951001335,0.01259509,2407.6,2406.6,0.15903775]
[1769951001336,0.00417676,2407.6,2406.6,0.15903775]
[1769951001525,0.00417676,2407.6,2406.8,0.15903775]
[1769951002529,0.00866643,2408.2,2407.1,0.15954871]
[1769951003240,0.00764451,2408.1,2406.5,0.15954871]
[1769951003425,0.01288381,2408.1,2406.5,0.3726711]
[1769951003630,0.01288381,2408.1,2406.7,0.15954871]
[1769951003831,0.01288381,2408.1,2406.8,0.15954871]
[1769951004034,0.01288381,2408.1,2406.9,0.15954871]
[1769951004233,0.00764451,2408.7,2407.4,0.15954871]
[1769951004432,10.34882984,2409.5,2407.5,0.15954871]
[1769951004433,0.00764451,2409.0,2407.5,0.15954871]
[1769951004737,0.00819975,2409.4,2407.9,0.15927109]
[1769951005834,2.438,2409.7,2407.0,0.15927109]
[1769951005835,0.00819975,2409.2,2407.0,0.15927109]
[1769951006030,0.00819975,2408.7,2407.2,0.15927109]
[1769951006227,0.00819975,2408.6,2407.2,0.15927109]
[1769951007740,0.00819975,2408.6,2407.3,0.16056971]
[1769951008135,0.00819975,2408.6,2407.4,0.16056971]
[1769951009334,0.0073623,2408.4,2406.6,0.15968982]
[1769951010335,0.0073623,2408.3,2406.6,0.15968982]
[1769951010742,0.00766357,2408.0,2406.7,0.15953918]
[1769951010936,0.00766357,2407.7,2406.7,0.15953918]
[1769951012438,0.00766357,2407.7,2406.4,0.15953918]
[1769951012839,0.00807601,2407.6,2406.1,0.15933296]
[1769951013848,0.00807601,2407.5,2406.1,0.15933296]
[1769951014747,10.68382984,2408.0,2406.1,0.15933296]
[1769951014748,0.00802845,2407.3,2406.1,0.15933296]
[1769951015241,0.00284606,2407.1,2406.1,0.15933296]
[1769951015445,0.00284606,2407.1,2405.5,0.16194794]
[1769951015640,0.2079,2407.0,2405.7,0.16194794]
[1769951015846,0.2079,2407.0,2405.7,0.16608316]
[1769951015847,0.21407105,2407.0,2405.7,0.16608316]
[1769951016042,0.21407105,2407.0,2405.9,0.16194794]
[1769951016343,0.20791,2406.9,2405.9,3.64005198]
[1769951016548,0.21075606,2406.9,2405.9,0.16194794]
[1769951016747,0.21075606,2406.9,2405.9,3.64005198]
[1769951017044,0.20792,2406.8,2405.9,3.64005198]
[1769951017445,0.20792,2406.8,2406.0,3.47810404]
[1769951018249,0.00284606,2406.9,2405.7,0.00413522]
[1769951018939,0.00332499,2407.0,2405.7,0.00413522]
[1769951018940,0.00443749,2406.6,2405.7,0.00413522]
[1769951019647,0.20797,2406.2,2405.3,0.16273897]
[1769951020145,0.20797,2406.2,2405.5,3.47810404]
[1769951020347,0.20798,2406.1,2405.3,3.47810404]
[1769951020642,0.21241749,2406.1,2405.4,3.47810404]
[1769951020842,0.21241749,2406.1,2405.5,3.47810404]
[1769951021042,0.208,2405.9,2405.3,0.00297955]
[1769951021244,0.208,2405.9,2405.3,0.16571852]
[1769951021544,0.208,2405.9,2405.4,3.47810404]
[1769951022347,0.20801,2405.8,2405.4,3.03769404]
[1769951022645,0.20802,2405.7,2404.4,0.16273897]
[1769951022848,0.00426823,2405.8,2404.7,0.16273897]
[1769951023048,0.20806,2405.2,2403.9,0.16343468]
[1769951023549,0.20806,2405.2,2404.6,0.16343468]
[1769951023550,0.21333992,2405.2,2404.6,0.16343468]
[1769951023847,0.21333992,2405.2,2404.3,2.7388475]
[1769951024041,0.21333992,2405.2,2404.4,0.16343106]
[1769951024351,0.21333992,2405.2,2404.5,2.57541282]
[1769951024648,0.21333992,2405.2,2404.6,2.57541282]
[1769951025148,0.21333992,2405.2,2404.7,2.57541282]
[1769951025349,0.21333992,2405.2,2404.6,2.57541282]
[1769951025948,0.21333992,2405.2,2404.7,2.57541282]
[1769951026247,0.2081,2404.7,2404.2,0.16450131]
[1769951026840,0.20811,2404.6,2403.9,0.16949343]
[1769951027350,0.37050952,2404.2,2402.5,2.439]
[1769951027646,2.439,2404.6,2402.8,0.20826]
[1769951027851,2.60135952,2404.6,2402.8,0.20826]
[1769951028255,0.37049952,2404.2,2402.8,0.00435901]
[1769951028553,0.2082,2403.6,2402.8,0.00435901]
[1769951029351,0.2082,2403.6,2402.8,0.16053548]
[1769951032154,0.20815,2404.1,2402.8,0.16053548]
[1769951032350,0.16321278,2404.5,2403.0,0.15617647]
[1769951032556,2.28711,2404.6,2403.0,0.15617647]
[1769951034765,2.28711,2404.6,2403.2,0.15617647]
[1769951035660,0.16321278,2404.5,2403.2,0.15617647]
[1769951035855,0.16321278,2404.4,2403.2,0.15617647]
[1769951036253,0.37133278,2404.4,2403.2,0.15617647]
[1769951036960,0.20812,2404.4,2403.2,0.15617647]
[1769951037360,2.079,2404.6,2403.2,0.15617647]
[1769951038577,2.079,2404.6,2403.3,0.15617647]
[1769951039161,2.24221278,2404.6,2403.3,0.15617647]
[1769951039465,2.079,2404.6,2403.3,0.15617647]
[1769951040363,2.44,2405.1,2403.4,0.15617647]
[1769951040364,2.60321278,2405.1,2403.4,0.15617647]
[1769951040963,2.60321278,2405.1,2403.5,0.15617647]
[1769951041159,0.00527992,2405.2,2403.5,0.15617647]
[1769951041360,0.00527992,2405.2,2403.6,0.15617647]
[1769951041865,0.1684927,2405.2,2403.6,0.15617647]
[1769951043069,0.00527992,2405.2,2403.6,0.36436647]
[1769951043265,0.00527992,2405.2,2403.1,7.87677419]
[1769951043266,0.00527992,2405.2,2403.7,0.15617647]
[1769951043466,0.00527992,2405.2,2403.9,0.15617647]
[1769951043667,0.00527992,2405.2,2404.1,0.15617647]
[1769951046066,0.16321278,2405.8,2404.1,0.15617647]
[1769951047068,0.16696615,2405.8,2404.1,0.15617647]
[1769951047572,0.16696615,2405.8,2404.2,0.14757234]
[1769951048165,0.00375337,2405.8,2404.3,0.14757234]
[1769951049171,0.00375337,2405.8,2404.6,0.14757234]
[1769951049367,0.00375337,2405.8,2404.6,0.15094177]
[1769951050670,0.1633967,2405.8,2404.6,0.00336943]
[1769951051269,0.15964333,2405.6,2404.6,0.00336943]
[1769951054281,0.15964333,2405.6,2404.6,0.15094177]
[1769951054478,0.20801,2405.7,2404.6,0.15094177]
[1769951054682,0.00375337,2405.8,2404.6,0.15094177]
[1769951055077,0.00375337,2405.8,2405.0,0.20807]
[1769951055281,0.15964333,2406.8,2405.2,0.14757234]
[1769951055578,0.20792,2406.8,2405.2,0.14757234]
[1769951055777,0.15964333,2407.0,2405.3,0.14757234]
[1769951056176,0.16316398,2407.0,2405.3,0.14757234]
[1769951056671,0.00352065,2407.0,2405.3,0.14757234]
[1769951057282,0.00352065,2407.0,2405.4,0.14757234]
[1769951057682,0.16316398,2407.0,2405.4,0.14757234]
[1769951058676,0.15964333,2406.9,2405.4,0.14757234]
[1769951061976,0.21142065,2407.0,2405.4,0.14757234]
[1769951062882,0.37106398,2407.0,2405.4,0.14757234]
[1769951063283,0.37106398,2407.0,2405.1,2.6625954]
[1769951063284,0.00352065,2407.0,2405.6,0.14757234]
[1769951064481,0.00352065,2407.0,2405.6,0.35559234]
[1769951064676,0.00352065,2407.0,2405.7,0.14757234]
[1769951064879,0.36749333,2407.6,2405.9,0.14757234]
[1769951065380,0.20785,2407.6,2405.9,0.14757234]
[1769951065978,0.21250021,2407.6,2405.9,0.14757234]
[1769951067285,0.15964333,2407.5,2405.9,0.14757234]
[1769951067884,0.00465021,2407.6,2406.1,0.35554234]
[1769951068186,0.00465021,2407.6,2406.2,0.14757234]
[1769951069580,0.16429354,2407.6,2406.2,0.14757234]
[1769951070286,0.00465021,2407.6,2406.2,0.14757234]
[1769951073882,0.00465021,2407.6,2406.2,2.58657234]
[1769951074186,0.00465021,2407.6,2406.3,0.14757234]
[1769951074376,0.00465021,2407.6,2406.3,0.15245242]
[1769951074577,0.16429354,2407.6,2406.3,0.15245242]
[1769951074783,0.15964333,2407.3,2406.3,0.15245242]
[1769951076080,0.15964333,2407.1,2406.3,0.00488008]
[1769951076781,0.15964333,2406.4,2405.3,2.4545354]
[1769951076988,0.00465021,2407.6,2405.2,0.14757234]
[1769951076989,0.15964333,2406.7,2405.2,0.14757234]
[1769951077888,0.15964333,2406.7,2405.2,0.15096518]
[1769951080094,0.15850008,2405.9,2404.6,0.15503251]
[1769951080389,0.15850008,2405.7,2404.0,0.15503251]
[1769951080591,0.15850008,2405.6,2404.0,0.15503251]
[1769951080890,0.15850008,2405.5,2404.0,0.15503251]
[1769951081082,0.20806,2405.2,2404.0,0.15853233]
[1769951081288,0.15850008,2405.1,2404.0,0.15853233]
[1769951082388,0.15850008,2405.4,2404.0,0.15853233]
[1769951082786,0.15850008,2405.2,2404.0,0.15853233]
[1769951083389,0.15850008,2405.0,2404.0,0.15853233]
[1769951085288,0.14768971,2404.9,2404.0,0.00349982]
[1769951088797,0.14768971,2405.5,2404.0,0.15251928]
[1769951090094,0.21299191,2405.6,2404.0,0.15251928]
[1769951090594,0.36068162,2405.6,2404.0,0.15251928]
[1769951091404,0.36068162,2405.6,2404.1,0.14901946]
[1769951091405,0.21299191,2405.6,2404.1,0.14901946]
[1769951091902,0.14768971,2405.5,2404.1,0.14901946]
[1769951093496,0.14768971,2405.2,2404.1,0.14901946]
[1769951093698,0.14768971,2404.9,2404.1,0.14901946]
[1769951093898,0.14768971,2404.9,2404.0,0.00349982]
[1769951094804,0.14768971,2404.9,2404.0,0.15251928]
[1769951095008,2.58768971,2405.2,2404.0,0.15251928]
[1769951095208,0.14768971,2405.1,2404.0,0.15251928]
[1769951096504,0.14768971,2405.1,2404.0,0.00349982]
[1769951097210,0.14768971,2404.9,2404.0,0.00349982]
[1769951098107,0.14768971,2404.9,2403.3,0.14901946]
[1769951098612,0.14768971,2404.7,2403.3,0.14901946]
[1769951099213,0.14768971,2404.7,2403.3,0.15415161]
[1769951099618,0.14768971,2404.6,2403.3,0.15415161]
[1769951100113,0.14768971,2404.4,2403.3,0.15415161]
[1769951100313,0.14768971,2404.3,2403.3,0.15415161]
[1769951100508,0.14768971,2404.1,2403.3,0.00513215]
[1769951100707,0.14768971,2404.1,2403.0,0.14901946]
[1769951101415,0.14768971,2404.0,2402.3,0.14901946]
[1769951101608,0.14768971,2404.0,2402.3,0.15264643]
[1769951102615,0.14768971,2403.9,2402.3,0.15264643]
[1769951102814,0.14768971,2403.4,2402.3,0.15264643]
[1769951103215,0.14768971,2403.3,2402.3,0.15264643]
[1769951103412,2.441,2403.6,2402.3,0.15264643]
[1769951103413,0.14768971,2403.1,2402.3,0.15264643]
[1769951103612,0.14768971,2403.1,2402.3,0.00362697]
[1769951104913,0.14768971,2403.4,2402.3,0.15264643]
[1769951105410,0.14768971,2403.7,2402.3,0.15264643]
[1769951105614,0.14768971,2403.4,2402.3,0.15264643]
[1769951105912,0.20821,2403.4,2402.3,0.15264643]
[1769951106116,0.14768971,2403.7,2402.3,0.15264643]
[1769951106913,0.00403206,2403.9,2402.3,0.15264643]
[1769951109818,0.00403206,2403.9,2402.3,2.80194643]
[1769951110017,0.16487473,2403.9,2402.4,0.15970319]
[1769951111722,0.16084267,2403.8,2402.4,0.15970319]
[1769951112122,0.16084267,2403.6,2402.4,0.15970319]
[1769951113220,0.16084267,2403.4,2402.4,0.15970319]
[1769951115125,0.16084267,2403.8,2402.4,0.15970319]
[1769951116229,0.00403206,2403.9,2402.4,0.36799319]
[1769951116524,0.00403206,2403.9,2402.5,0.15970319]
[1769951119726,0.00403206,2403.9,2402.6,0.15970319]
[1769951121025,0.00403206,2403.9,2402.7,0.15970319]
[1769951122230,0.16487473,2403.9,2402.7,0.15970319]
[1769951123432,0.16487473,2403.9,2402.8,0.15970319]
[1769951123736,0.00403206,2403.9,2402.8,0.15970319]
[1769951124036,0.16487473,2403.9,2402.8,0.15970319]
[1769951128435,0.16487473,2403.9,2402.9,0.15970319]
[1769951133546,0.51687473,2403.9,2402.9,0.15970319]
[1769951135842,0.16487473,2403.9,2402.9,0.15970319]
[1769951138043,0.00403206,2403.9,2403.0,0.15302423]
[1769951139247,0.15689517,2403.9,2403.0,0.15302423]
[1769951139752,0.00403206,2403.9,2403.0,0.15302423]
[1769951140048,0.15286311,2404.6,2403.5,0.15302423]
[1769951141049,0.15792932,2404.6,2403.5,0.15302423]
[1769951141452,0.00506621,2404.6,2403.6,0.15302423]
[1769951141651,0.15792932,2404.6,2403.6,0.15302423]
[1769951142843,0.00506621,2404.6,2403.6,0.15302423]
[1769951144556,0.3713998,2404.6,2403.6,0.15302423]
[1769951144854,0.15822359,2404.5,2403.6,0.15302423]
[1769951145050,0.15822359,2404.3,2403.4,0.15585807]
[1769951146250,0.1632898,2404.6,2403.5,0.15585807]
[1769951146757,0.3713998,2404.6,2403.5,0.15585807]
[1769951149657,0.00506621,2404.6,2403.5,0.15585807]
[1769951152264,0.15822359,2404.4,2403.5,0.15585807]
[1769951152455,0.15822359,2404.3,2403.2,0.15585807]
[1769951153167,0.00506621,2404.6,2403.3,0.15585807]
[1769951154270,0.15822359,2405.8,2404.3,0.15585807]
[1769951154569,0.15822359,2405.8,2404.5,0.15585807]
[1769951154763,0.15822359,2405.8,2404.6,0.15585807]
[1769951155171,4.32187159,2405.8,2404.7,0.15585807]
[1769951155570,4.1592,2405.7,2404.7,0.15585807]
[1769951155765,0.15822359,2405.6,2404.7,0.15585807]
[1769951155961,0.15822359,2405.5,2404.7,0.15585807]
[1769951156966,4.1592,2405.2,2404.6,0.00357154]
[1769951157172,0.15822359,2405.3,2404.6,0.00357154]
[1769951157370,4.1592,2405.2,2404.6,0.00357154]
[1769951157874,4.1592,2405.1,2404.6,0.15942961]
[1769951158069,4.1592,2405.2,2404.6,0.15942961]
[1769951158467,4.1592,2405.1,2404.6,0.15942961]
[1769951158767,4.1592,2405.2,2404.6,0.15942961]
[1769951159373,4.31742359,2405.1,2404.6,0.00357154]
[1769951159673,0.15822359,2405.1,2404.6,0.00357154]
[1769951159874,4.31742359,2405.1,2404.6,0.00357154]
[1769951160575,4.1592,2404.8,2404.6,0.00357154]
[1769951160875,0.15822359,2405.0,2404.3,0.15585807]
[1769951161075,4.31742359,2405.0,2404.3,0.15585807]
[1769951161668,4.1592,2404.9,2404.3,0.15585807]
[1769951161871,4.1592,2404.9,2404.3,0.15972554]
[1769951167174,4.1592,2404.8,2404.3,0.15972554]
[1769951167374,4.1592,2404.9,2404.3,0.15972554]
[1769951167776,4.1592,2404.8,2404.3,0.15972554]
[1769951167971,4.1592,2404.9,2404.3,0.15972554]
[1769951168373,4.1592,2404.8,2404.3,0.15972554]
[1769951168576,4.1592,2404.9,2404.3,0.15972554]
[1769951168968,4.1592,2404.8,2404.3,0.15972554]
[1769951169171,4.1592,2404.9,2404.3,0.15972554]
[1769951169577,4.1592,2404.8,2404.3,0.15972554]
[1769951169773,4.1592,2404.9,2404.3,0.15972554]
[1769951170177,4.1592,2404.8,2404.3,0.15972554]
[1769951170377,4.1592,2404.9,2404.3,0.15972554]
[1769951170779,4.1592,2404.8,2404.3,0.15972554]
[1769951171078,4.1592,2404.9,2404.3,0.15972554]
[1769951171478,4.1592,2404.8,2404.3,0.15972554]
[1769951171779,4.1592,2404.9,2404.3,0.15972554]
[1769951172178,4.1592,2404.8,2404.3,0.15972554]
[1769951172480,0.156864,2405.2,2404.3,0.15972554]
[1769951172982,0.156864,2405.3,2404.3,0.15972554]
[1769951173173,4.1592,2405.3,2404.3,0.15972554]
[1769951173378,4.316064,2405.3,2404.3,0.15972554]
[1769951173583,0.156864,2405.3,2404.3,0.15972554]
[1769951173883,0.156864,2405.3,2404.5,0.16314529]
[1769951174376,4.316064,2405.3,2404.5,0.16314529]
[1769951174675,0.156864,2405.2,2404.5,0.16314529]
[1769951174876,0.004448,2405.8,2404.3,0.00386747]
[1769951174877,4.316064,2405.0,2404.3,0.00386747]
[1769951175084,0.156864,2405.0,2404.3,0.00386747]
[1769951175380,4.316064,2405.0,2404.3,0.16701276]
[1769951176077,4.316064,2404.9,2404.3,0.00386747]
[1769951176278,0.156864,2404.9,2404.3,0.00386747]
[1769951176474,4.316064,2404.9,2404.3,0.00386747]
[1769951176975,0.156864,2404.6,2403.9,6.7136178]
[1769951177180,0.20806,2405.2,2403.8,0.16314529]
[1769951177480,4.1592,2404.8,2403.8,0.16314529]
[1769951177981,0.20806,2405.2,2403.9,0.16314529]
[1769951178181,4.1592,2405.2,2404.2,0.16314529]
[1769951178384,4.1592,2405.1,2404.2,0.16314529]
[1769951178584,4.1592,2405.2,2404.2,0.16314529]
[1769951179084,0.56001,2405.7,2404.2,0.16314529]
[1769951179085,4.1592,2405.1,2404.2,0.16314529]
[1769951179385,0.156864,2405.2,2404.1,2.786]
[1769951179586,0.156864,2405.1,2404.1,2.786]
[1769951179885,0.156864,2404.9,2404.1,2.786]
[1769951180180,0.156864,2404.9,2404.0,0.16314529]
[1769951180485,4.316064,2404.9,2404.0,0.16314529]
[1769951181285,4.316064,2404.9,2404.1,0.16314529]
[1769951181484,4.1592,2404.8,2404.1,0.16314529]
[1769951181890,4.1592,2404.7,2404.1,0.16314529]
[1769951182185,4.1592,2404.8,2404.1,0.16314529]
[1769951182888,4.1592,2404.7,2404.1,0.16314529]
[1769951183082,4.1592,2404.8,2404.1,0.16314529]
[1769951183283,4.1592,2404.8,2404.2,0.16314529]
[1769951183483,4.1592,2404.7,2404.2,0.16314529]
[1769951183886,4.1592,2404.6,2404.2,0.16314529]
[1769951184187,4.1592,2404.7,2404.2,0.16314529]
[1769951184586,4.1592,2404.6,2404.2,0.16314529]
[1769951184777,4.1592,2404.7,2404.2,0.16314529]
[1769951185183,4.1592,2404.6,2404.2,0.16314529]
[1769951185390,4.1592,2404.7,2404.2,0.16314529]
[1769951185788,4.1592,2404.6,2404.2,0.16314529]
[1769951185989,4.1592,2404.7,2404.2,0.16314529]
[1769951186490,4.1592,2404.6,2404.2,0.16314529]
[1769951186681,4.1592,2404.7,2404.2,0.16314529]
[1769951186880,4.1592,2404.6,2404.2,0.16314529]
[1769951187083,4.1592,2404.7,2404.2,0.16314529]
[1769951187286,0.156864,2405.1,2404.3,0.16314529]
[1769951187488,4.316064,2405.1,2404.3,0.16314529]
[1769951187788,4.1592,2404.9,2404.3,0.16314529]
[1769951188189,4.1592,2404.8,2404.3,0.16314529]
[1769951188385,4.1592,2404.9,2404.3,0.16314529]
[1769951188785,4.1592,2404.8,2404.3,0.16314529]
[1769951189095,4.1592,2404.9,2404.3,0.16314529]
[1769951189292,4.1592,2404.9,2404.4,0.16314529]
[1769951189494,4.1592,2404.8,2404.4,0.16314529]
[1769951189693,4.1592,2404.9,2404.4,0.16314529]
[1769951190194,4.1592,2404.8,2404.4,0.16314529]
[1769951190492,4.1592,2404.9,2404.4,0.16314529]
[1769951190999,4.1592,2404.8,2404.4,0.16314529]
[1769951191199,4.1592,2404.9,2404.4,0.16314529]
[1769951191601,4.316064,2404.9,2404.4,0.16314529]
[1769951191796,4.1592,2404.8,2404.2,2.64304802]
[1769951192098,4.1592,2404.6,2404.2,5.29590273]
[1769951192502,4.1592,2404.5,2404.2,5.29590273]
[1769951192800,4.1592,2404.6,2404.2,5.29590273]
[1769951193000,4.1592,2404.6,2404.2,6.91152378]
[1769951193299,4.1592,2404.5,2404.2,4.09552378]
[1769951193495,4.1592,2404.6,2404.2,4.09552378]
[1769951193900,4.1592,2404.5,2404.2,4.09552378]
[1769951194101,4.1592,2404.6,2404.2,4.09552378]
[1769951194297,0.156864,2405.2,2404.3,0.16314529]
[1769951194501,1.80477575,2404.9,2404.3,0.16314529]
[1769951194899,1.80477575,2404.6,2404.3,0.16314529]
[1769951195093,0.156864,2405.0,2404.3,0.16314529]
[1769951195094,1.80477575,2404.9,2404.3,0.16314529]
[1769951195298,1.80477575,2404.7,2404.3,0.16314529]
[1769951195595,1.80477575,2404.8,2404.3,0.16314529]
[1769951195790,1.80477575,2404.9,2404.4,0.16314529]
[1769951195998,0.156864,2405.3,2404.4,0.16314529]
[1769951196198,1.80477575,2405.2,2404.5,0.16314529]
[1769951196505,1.80477575,2405.1,2404.6,2.99914529]
[1769951196806,1.80477575,2405.2,2404.7,4.25866907]
[1769951196996,1.80477575,2405.0,2404.7,6.57542651]
[1769951197201,0.156864,2405.5,2404.8,0.16314529]
[1769951197705,1.80477575,2405.4,2404.8,0.16314529]
[1769951198099,2.084448,2405.8,2404.6,6.53177419]
[1769951198100,1.9552566,2405.3,2404.6,6.73829648]
[1769951198305,0.15048085,2405.3,2404.6,6.73829648]
[1769951198506,1.9552566,2405.1,2404.7,2.843]
[1769951198806,1.80477575,2404.9,2404.7,2.843]
[1769951199300,1.80477575,2404.8,2404.7,2.843]
[1769951199501,1.80477575,2404.9,2404.7,2.843]
[1769951199897,1.80477575,2404.8,2404.7,2.843]
[1769951200200,1.80477575,2404.8,2404.4,6.57542651]
[1769951200411,1.80477575,2404.5,2404.2,2.47990273]
[1769951200601,0.15048085,2404.7,2404.1,2.857]
[1769951200800,1.80477575,2404.4,2404.1,3.01986997]
[1769951201003,1.80477575,2404.4,2404.2,0.16286997]
[1769951201198,0.15048085,2404.9,2404.2,0.16286997]
[1769951201404,1.64138761,2404.7,2404.1,3.00850695]
[1769951201801,1.64138761,2404.6,2404.2,0.15150695]
[1769951201998,1.64138761,2404.7,2404.2,0.15150695]
[1769951202404,1.64138761,2404.6,2404.2,0.15150695]
[1769951202602,1.64138761,2404.7,2404.2,0.15150695]
[1769951203110,1.64138761,2404.6,2404.2,0.15150695]
[1769951203400,1.64138761,2404.7,2404.1,3.00928906]
[1769951204306,1.64138761,2404.6,2404.1,5.48919179]
[1769951204508,1.64138761,2404.7,2404.1,5.48919179]
[1769951204910,1.64138761,2404.6,2404.1,5.48919179]
[1769951205205,1.64138761,2404.5,2404.1,5.48919179]
[1769951205511,1.64138761,2404.7,2404.1,5.48919179]
[1769951205802,1.64138761,2404.7,2404.1,3.00928906]
[1769951206003,1.64138761,2404.6,2404.1,3.00928906]
[1769951206206,1.64138761,2404.7,2404.1,3.00928906]
[1769951206713,1.64138761,2404.6,2404.1,3.00928906]
[1769951207512,1.64138761,2404.5,2404.1,3.00928906]
[1769951207810,1.64138761,2404.6,2404.1,3.00928906]
[1769951208210,1.64138761,2404.5,2404.1,3.00928906]
[1769951208411,1.64138761,2404.6,2404.1,3.00928906]
[1769951209713,1.64138761,2404.5,2404.1,3.00928906]
[1769951210009,0.15048085,2404.9,2404.1,3.00928906]
[1769951210010,1.64138761,2404.6,2404.1,3.00928906]
[1769951210216,1.64138761,2404.4,2404.1,2.857]
[1769951210405,1.64138761,2404.3,2404.1,2.857]
[1769951210606,1.09171918,2404.4,2404.1,2.857]
[1769951210914,1.09171918,2404.3,2404.1,2.857]
[1769951211211,1.09171918,2404.3,2404.1,3.01151851]
[1769951211411,1.09171918,2404.2,2404.1,3.01151851]
[1769951211612,0.38392941,2404.2,2404.1,3.01151851]
[1769951212315,0.38392941,2404.2,2404.1,5.49142124]
[1769951212516,0.38392941,2404.2,2404.1,3.01151851]
[1769951214715,17.50229532,2406.2,2404.2,0.15474521]
[1769951214716,0.15030679,2405.2,2404.2,0.15474521]
[1769951215017,0.15030679,2405.2,2404.4,0.15474521]
[1769951215317,0.15030679,2405.2,2404.5,2.941]
[1769951216311,0.38392941,2405.1,2404.5,3.09574521]
[1769951216813,0.5342362,2405.1,2404.5,2.941]
[1769951219514,0.5342362,2405.1,2404.4,2.48206148]
[1769951219721,0.5342362,2405.1,2404.5,2.953]
[1769951220216,0.15030679,2405.0,2404.3,2.48206148]
[1769951220419,0.15030679,2405.0,2404.3,2.958]
[1769951220621,0.15030679,2405.0,2403.9,7.73173856]
[1769951220918,0.15030679,2405.0,2404.0,2.959]
[1769951221420,0.15030679,2405.0,2403.9,7.73173856]
[1769951221720,0.15030679,2405.0,2403.9,2.959]
[1769951222020,0.15030679,2405.0,2404.0,0.15417226]
[1769951225318,0.15030679,2405.0,2403.9,2.959]
[1769951226217,0.15030679,2405.0,2403.9,3.1109575]
[1769951227720,0.15030679,2405.0,2403.9,0.1519575]
[1769951227927,0.15030679,2405.0,2403.8,0.00295469]
[1769951227928,0.15030679,2405.0,2404.0,2.956]
[1769951229219,0.15030679,2405.0,2403.8,0.15116742]
[1769951229423,0.15030679,2405.0,2403.9,3.10421273]
[1769951230420,0.15030679,2405.0,2404.0,0.14821273]
[1769951249543,0.15030679,2405.0,2404.0,4.09915868]
[1769951251443,0.15030679,2405.0,2404.1,0.1435034]
[1769951251643,0.15030679,2405.0,2404.0,3.95094595]
[1769951251944,0.15030679,2405.0,2404.0,4.09444935]
[1769951252240,0.15976211,2404.6,2403.6,4.92303365]
[1769951252438,0.15976211,2404.6,2403.3,0.14645809]
[1769951252638,0.15976211,2404.2,2403.1,0.14581727]
[1769951253348,0.15976211,2404.2,2403.1,0.15011475]
[1769951253752,0.15976211,2404.2,2403.1,0.00429748]
[1769951254547,0.15976211,2404.2,2403.1,0.15011475]
[1769951257554,0.15918129,2404.4,2403.1,0.15011475]
[1769951259558,0.15918129,2404.4,2403.3,0.14549403]
[1769951261750,0.15918129,2404.4,2403.3,2.58649403]
[1769951262158,0.15918129,2404.4,2403.3,0.14549403]
[1769951262458,0.15918129,2404.4,2403.1,2.59050135]
[1769951263254,0.15918129,2404.4,2403.1,2.44529748]
[1769951263458,0.15918129,2404.4,2403.2,0.1449381]
[1769951267759,0.14881699,2404.2,2403.1,0.00429748]
[1769951267955,0.14881699,2403.8,2402.7,0.14334353]
[1769951268157,0.14881699,2404.1,2402.7,0.14334353]
[1769951268962,0.15211823,2404.1,2402.7,0.14820422]
[1769951269257,0.00330124,2404.1,2403.0,0.14334784]
[1769951269463,0.00330124,2404.1,2403.2,0.14334784]
[1769951271867,0.15211823,2404.1,2403.2,0.14334784]
[1769951272065,0.14881699,2404.7,2403.2,0.14334784]
[1769951272263,0.14881699,2404.7,2403.3,0.13983382]
[1769951273164,0.1525252,2404.7,2403.3,0.13983382]
[1769951273762,0.1525252,2404.7,2403.5,0.13839104]
[1769951277174,0.14881699,2404.6,2403.5,0.13839104]
[1769951282274,0.14881699,2404.6,2403.3,2.60450903]
[1769951282470,0.14881699,2404.6,2403.3,0.13482091]
[1769951282871,0.14881699,2404.4,2403.3,0.13482091]
[1769951295090,0.14881699,2404.4,2403.2,2.46968812]
[1769951295298,0.15959794,2404.3,2403.1,0.13222345]
[1769951295499,0.15959794,2404.2,2402.9,3.07022345]
[1769951295695,0.15959794,2404.2,2402.8,2.46968812]
[1769951295696,0.15959794,2404.1,2402.8,2.46968812]
[1769951295893,0.15959794,2404.1,2402.7,2.47454881]
[1769951296088,0.15959794,2404.1,2402.7,2.60677226]
[1769951298397,2.60059794,2404.1,2402.7,2.60677226]
[1769951298598,0.15959794,2404.0,2402.7,2.60677226]
[1769951300299,0.15959794,2404.0,2402.7,0.13708414]
[1769951301202,0.15959794,2403.9,2402.7,0.13708414]
[1769951302097,0.15959794,2403.9,2402.8,0.13419396]
[1769951302298,0.352,2404.0,2402.8,0.13419396]
[1769951302702,0.51159794,2404.0,2402.8,0.13419396]
[1769951304105,0.51159794,2404.0,2402.9,0.13847079]
[1769951304695,0.352,2404.0,2403.0,0.13868743]
[1769951304898,0.352,2404.0,2403.2,0.13868743]
[1769951306304,0.15959794,2404.2,2403.2,0.13868743]
[1769951308204,0.15959794,2404.2,2402.9,2.46968812]
[1769951308499,0.15959794,2404.2,2402.8,3.86178885]
[1769951308500,0.15959794,2404.1,2402.8,3.09269663]
[1769951309600,0.15959794,2404.1,2402.8,0.13869663]
[1769951312303,0.15959794,2403.9,2402.8,0.13869663]
[1769951312699,0.15959794,2403.9,2402.7,0.00486069]
[1769951313101,0.51159794,2403.9,2402.7,0.00486069]
[1769951313303,0.15959794,2403.8,2402.7,0.00486069]